[Event "Titled Tuesday Blitz November 15 Early 2022"]
[White "Adel, Sara"]
[Black "Deuer, Marius"]
[WhiteFideId "10616764"]
[BlackFideId "16236432"]
[WhiteElo "1994"]
[BlackElo "2226"]
[Result "0-1"]
[Round "06"]
[TimeControl "180+1"]
[Date "2022.11.16"]
[WhiteClock "0:00:08"]
[BlackClock "0:00:28"]

1. e4 {[%clk 0:02:59]}  c5 {[%clk 0:03:00]} 2. Nc3 {[%clk 0:02:59]}  Nc6 {[%clk 0:03:00]} 3. f4 {[%clk 0:03:00]}  g5 {[%clk 0:02:58]} 4. Bc4 {[%clk 0:02:58]}  Bg7 {[%clk 0:02:57]} 5. Bxf7+ {[%clk 0:02:56]}  Kxf7 {[%clk 0:02:56]} 6. Qh5+ {[%clk 0:02:56]}  Kf8 {[%clk 0:02:55]} 7. fxg5 {[%clk 0:02:56]}  Qe8 {[%clk 0:02:51]} 8. Qh4 {[%clk 0:02:52]}  Qg6 {[%clk 0:02:50]} 9. Nh3 {[%clk 0:02:51]}  e5 {[%clk 0:02:46]} 10. Nd5 {[%clk 0:02:50]}  d6 {[%clk 0:02:45]} 11. O-O+ {[%clk 0:02:49]}  Ke8 {[%clk 0:02:45]} 12. Nc7+ {[%clk 0:02:49]}  Ke7 {[%clk 0:02:45]} 13. Nxa8 {[%clk 0:02:48]}  Kd8 {[%clk 0:02:43]} 14. c3 {[%clk 0:02:39]}  Nge7 {[%clk 0:02:42]} 15. d3 {[%clk 0:02:40]}  b6 {[%clk 0:02:41]} 16. b4 {[%clk 0:02:39]}  Bb7 {[%clk 0:02:41]} 17. bxc5 {[%clk 0:02:37]}  dxc5 {[%clk 0:02:41]} 18. d4 {[%clk 0:02:35]}  exd4 {[%clk 0:02:39]} 19. cxd4 {[%clk 0:02:32]}  Bxd4+ {[%clk 0:02:39]} 20. Be3 {[%clk 0:02:26]}  Bxe3+ {[%clk 0:02:35]} 21. Kh1 {[%clk 0:02:26]}  Bxa8 {[%clk 0:02:35]} 22. Rf6 {[%clk 0:02:23]}  Qg7 {[%clk 0:02:28]} 23. Qg3 {[%clk 0:02:22]}  Bd4 {[%clk 0:02:25]} 24. Rd1 {[%clk 0:02:21]}  Kc8 {[%clk 0:02:24]} 25. Qg4+ {[%clk 0:02:16]}  Kb8 {[%clk 0:02:21]} 26. Rd6 {[%clk 0:02:09]}  Bb7 {[%clk 0:02:15]} 27. Nf4 {[%clk 0:02:08]}  Qe5 {[%clk 0:02:11]} 28. Rd7 {[%clk 0:02:03]}  Bc8 {[%clk 0:02:04]} 29. Rxe7 {[%clk 0:01:43]}  Bxg4 {[%clk 0:02:00]} 30. Rxe5 {[%clk 0:01:39]}  Bxe5 {[%clk 0:01:55]} 31. Rf1 {[%clk 0:01:31]}  Rf8 {[%clk 0:01:56]} 32. g3 {[%clk 0:01:31]}  Nd4 {[%clk 0:01:56]} 33. Kg2 {[%clk 0:01:30]}  Bc8 {[%clk 0:01:46]} 34. g6 {[%clk 0:01:25]}  hxg6 {[%clk 0:01:43]} 35. Nxg6 {[%clk 0:01:23]}  Rxf1 {[%clk 0:01:43]} 36. Kxf1 {[%clk 0:01:23]}  Bg7 {[%clk 0:01:43]} 37. Kf2 {[%clk 0:01:21]}  Bb7 {[%clk 0:01:42]} 38. Ke3 {[%clk 0:01:21]}  Kc7 {[%clk 0:01:41]} 39. h4 {[%clk 0:01:20]}  Kd6 {[%clk 0:01:39]} 40. g4 {[%clk 0:01:20]}  Ke6 {[%clk 0:01:39]} 41. g5 {[%clk 0:01:21]}  Nc2+ {[%clk 0:01:24]} 42. Kf4 {[%clk 0:01:09]}  Bb2 {[%clk 0:01:06]} 43. h5 {[%clk 0:01:03]}  Bc1+ {[%clk 0:01:05]} 44. Kf3 {[%clk 0:01:00]}  Bxg5 {[%clk 0:01:04]} 45. Kg4 {[%clk 0:00:52]}  Bh6 {[%clk 0:01:02]} 46. Kf3 {[%clk 0:00:50]}  Nd4+ {[%clk 0:01:00]} 47. Kf2 {[%clk 0:00:47]}  Bxe4 {[%clk 0:00:59]} 48. Nh4 {[%clk 0:00:47]}  Bb1 {[%clk 0:00:53]} 49. Ke1 {[%clk 0:00:46]}  Bxa2 {[%clk 0:00:53]} 50. Kd1 {[%clk 0:00:42]}  Bd5 {[%clk 0:00:52]} 51. Ng6 {[%clk 0:00:39]}  a5 {[%clk 0:00:51]} 52. Nh4 {[%clk 0:00:31]}  a4 {[%clk 0:00:50]} 53. Ng2 {[%clk 0:00:31]}  a3 {[%clk 0:00:49]} 54. Ne1 {[%clk 0:00:30]}  a2 {[%clk 0:00:50]} 55. Nc2 {[%clk 0:00:26]}  Nxc2 {[%clk 0:00:50]} 56. Kxc2 {[%clk 0:00:27]}  a1=Q {[%clk 0:00:49]} 57. Kd3 {[%clk 0:00:27]}  Qd4+ {[%clk 0:00:49]} 58. Ke2 {[%clk 0:00:26]}  Qe3+ {[%clk 0:00:48]} 59. Kf1 {[%clk 0:00:26]}  Bf4 {[%clk 0:00:38]} 60. h6 {[%clk 0:00:20]}  Bg3 {[%clk 0:00:39]} 61. h7 {[%clk 0:00:18]}  Qd2 {[%clk 0:00:28]} 62. Kg1 {[%clk 0:00:13]}  Bg2 {[%clk 0:00:27]} 63. h8=B {[%clk 0:00:08]}  Qf2# {[%clk 0:00:28]} 0-1


[Site "https://www.chess.com"]

[Event "Titled Tuesday Blitz November 15 Early 2022"]
[White "Al-Tarboush, Ward"]
[Black "Petrovic, Aleksa"]
[WhiteFideId "7601450"]
[BlackFideId "967629"]
[WhiteElo "2273"]
[BlackElo "2224"]
[Result "1-0"]
[Round "06"]
[TimeControl "180+1"]
[Date "2022.11.16"]
[WhiteClock "0:01:12"]
[BlackClock "0:00:07"]

1. d4 {[%clk 0:03:00]}  Nf6 {[%clk 0:02:59]} 2. Nc3 {[%clk 0:03:01]}  e6 {[%clk 0:02:57]} 3. e4 {[%clk 0:03:01]}  d5 {[%clk 0:02:57]} 4. e5 {[%clk 0:02:59]}  Nfd7 {[%clk 0:02:57]} 5. f4 {[%clk 0:02:59]}  c5 {[%clk 0:02:57]} 6. Nf3 {[%clk 0:02:59]}  Nc6 {[%clk 0:02:56]} 7. Be3 {[%clk 0:02:59]}  Be7 {[%clk 0:02:56]} 8. Be2 {[%clk 0:02:57]}  O-O {[%clk 0:02:55]} 9. O-O {[%clk 0:02:56]}  a6 {[%clk 0:02:51]} 10. Qd2 {[%clk 0:02:54]}  f5 {[%clk 0:02:42]} 11. exf6 {[%clk 0:02:53]}  Rxf6 {[%clk 0:02:35]} 12. Rae1 {[%clk 0:02:52]}  b5 {[%clk 0:02:34]} 13. Ne5 {[%clk 0:02:50]}  Nxd4 {[%clk 0:02:25]} 14. Bxd4 {[%clk 0:02:39]}  cxd4 {[%clk 0:02:23]} 15. Nxd7 {[%clk 0:02:39]}  Bxd7 {[%clk 0:02:18]} 16. Qxd4 {[%clk 0:02:40]}  Qc7 {[%clk 0:02:13]} 17. Kh1 {[%clk 0:02:39]}  Raf8 {[%clk 0:02:13]} 18. g3 {[%clk 0:02:38]}  b4 {[%clk 0:02:08]} 19. Nd1 {[%clk 0:02:35]}  Qxc2 {[%clk 0:02:04]} 20. Bd3 {[%clk 0:02:32]}  Qc5 {[%clk 0:01:56]} 21. Qe5 {[%clk 0:02:32]}  Bd6 {[%clk 0:01:50]} 22. Qe2 {[%clk 0:02:31]}  a5 {[%clk 0:01:45]} 23. Nf2 {[%clk 0:02:31]}  e5 {[%clk 0:01:32]} 24. Rc1 {[%clk 0:02:29]}  Qb6 {[%clk 0:01:27]} 25. Qh5 {[%clk 0:02:18]}  g6 {[%clk 0:01:22]} 26. Qg5 {[%clk 0:02:16]}  exf4 {[%clk 0:01:20]} 27. Qxd5+ {[%clk 0:02:11]}  Be6 {[%clk 0:01:19]} 28. Qg2 {[%clk 0:02:01]}  fxg3 {[%clk 0:01:13]} 29. Ne4 {[%clk 0:02:01]}  Rxf1+ {[%clk 0:01:11]} 30. Rxf1 {[%clk 0:02:01]}  Rxf1+ {[%clk 0:01:04]} 31. Qxf1 {[%clk 0:02:02]}  gxh2 {[%clk 0:00:59]} 32. Nxd6 {[%clk 0:01:46]}  Qxd6 {[%clk 0:00:52]} 33. Be4 {[%clk 0:01:46]}  Qe5 {[%clk 0:00:48]} 34. Bg2 {[%clk 0:01:45]}  Bd5 {[%clk 0:00:39]} 35. Bxd5+ {[%clk 0:01:38]}  Qxd5+ {[%clk 0:00:40]} 36. Kxh2 {[%clk 0:01:39]}  Qe5+ {[%clk 0:00:39]} 37. Kh1 {[%clk 0:01:38]}  Qe4+ {[%clk 0:00:39]} 38. Kh2 {[%clk 0:01:38]}  Qh4+ {[%clk 0:00:36]} 39. Kg1 {[%clk 0:01:37]}  Qd4+ {[%clk 0:00:26]} 40. Kh1 {[%clk 0:01:38]}  Qd5+ {[%clk 0:00:26]} 41. Kg1 {[%clk 0:01:38]}  Qxa2 {[%clk 0:00:26]} 42. Qe2 {[%clk 0:01:37]}  Qf7 {[%clk 0:00:21]} 43. Qd2 {[%clk 0:01:37]}  Qa7+ {[%clk 0:00:19]} 44. Kh1 {[%clk 0:01:37]}  Qb7+ {[%clk 0:00:20]} 45. Kg1 {[%clk 0:01:37]}  Qb6+ {[%clk 0:00:20]} 46. Kh1 {[%clk 0:01:37]}  Qc6+ {[%clk 0:00:21]} 47. Kg1 {[%clk 0:01:36]}  Qc5+ {[%clk 0:00:21]} 48. Kh1 {[%clk 0:01:37]}  Qh5+ {[%clk 0:00:21]} 49. Kg1 {[%clk 0:01:37]}  Qg4+ {[%clk 0:00:22]} 50. Kh1 {[%clk 0:01:37]}  Qf3+ {[%clk 0:00:22]} 51. Kg1 {[%clk 0:01:37]}  Kf7 {[%clk 0:00:22]} 52. Qd7+ {[%clk 0:01:36]}  Kf6 {[%clk 0:00:22]} 53. Qd8+ {[%clk 0:01:35]}  Kf5 {[%clk 0:00:17]} 54. Qxa5+ {[%clk 0:01:35]}  Kg4 {[%clk 0:00:17]} 55. Qxb4+ {[%clk 0:01:34]}  Kh3 {[%clk 0:00:18]} 56. Qd2 {[%clk 0:01:31]}  h5 {[%clk 0:00:12]} 57. b4 {[%clk 0:01:27]}  h4 {[%clk 0:00:11]} 58. b5 {[%clk 0:01:21]}  Qg4+ {[%clk 0:00:08]} 59. Kf1 {[%clk 0:01:19]}  Qf5+ {[%clk 0:00:07]} 60. Ke1 {[%clk 0:01:19]}  Qe5+ {[%clk 0:00:06]} 61. Qe2 {[%clk 0:01:16]}  Qc3+ {[%clk 0:00:03]} 62. Kd1 {[%clk 0:01:12]}  Qb3+ {[%clk 0:00:03]} 63. Kc1 {[%clk 0:01:12]}  Kg3 {[%clk 0:00:03]} 64. Qe5+ {[%clk 0:01:10]}  Kg4 {[%clk 0:00:03]} 65. Qd4+ {[%clk 0:01:11]}  Kh5 {[%clk 0:00:03]} 66. b6 {[%clk 0:01:09]}  h3 {[%clk 0:00:03]} 67. Qh8+ {[%clk 0:01:09]}  Kg4 {[%clk 0:00:04]} 68. Qd4+ {[%clk 0:01:10]}  Kg3 {[%clk 0:00:04]} 69. Qe5+ {[%clk 0:01:10]}  Kg2 {[%clk 0:00:04]} 70. Qe4+ {[%clk 0:01:10]}  Kg1 {[%clk 0:00:04]} 71. Qg4+ {[%clk 0:01:10]}  Kf2 {[%clk 0:00:03]} 72. Qf4+ {[%clk 0:01:09]}  Ke2 {[%clk 0:00:04]} 73. Qh2+ {[%clk 0:01:09]}  Kf1 {[%clk 0:00:03]} 74. Qh1+ {[%clk 0:01:09]}  Kf2 {[%clk 0:00:03]} 75. b7 {[%clk 0:01:08]}  Qc3+ {[%clk 0:00:03]} 76. Kb1 {[%clk 0:01:08]}  Qb3+ {[%clk 0:00:03]} 77. Ka1 {[%clk 0:01:09]}  Qa3+ {[%clk 0:00:03]} 78. Kb1 {[%clk 0:01:09]}  Qb4+ {[%clk 0:00:04]} 79. Ka1 {[%clk 0:01:10]}  Qc3+ {[%clk 0:00:04]} 80. Kb1 {[%clk 0:01:10]}  Qb3+ {[%clk 0:00:04]} 81. Ka1 {[%clk 0:01:10]}  Qc3+ {[%clk 0:00:05]} 82. Ka2 {[%clk 0:01:11]}  Qc2+ {[%clk 0:00:05]} 83. Ka3 {[%clk 0:01:11]}  Qc3+ {[%clk 0:00:05]} 84. Ka4 {[%clk 0:01:11]}  Qc4+ {[%clk 0:00:06]} 85. Ka5 {[%clk 0:01:12]}  Qc5+ {[%clk 0:00:07]} 86. Ka6 {[%clk 0:01:12]}  Qc6+ {[%clk 0:00:07]} 87. Qxc6 {[%clk 0:01:12]} 1-0


[Site "https://www.chess.com"]

[Event "Titled Tuesday Blitz November 15 Early 2022"]
[White "Aponte Ramos, Argimiro"]
[Black "Begunov, Konstantin"]
[WhiteFideId "3900568"]
[BlackFideId "4118510"]
[WhiteElo "2216"]
[BlackElo "2140"]
[Result "0-1"]
[Round "06"]
[TimeControl "180+1"]
[Date "2022.11.16"]
[WhiteClock "0:00:02"]
[BlackClock "0:00:09"]

1. g4 {[%clk 0:02:55]}  d5 {[%clk 0:02:59]} 2. Bg2 {[%clk 0:02:53]}  c6 {[%clk 0:03:00]} 3. c4 {[%clk 0:02:53]}  dxc4 {[%clk 0:02:56]} 4. g5 {[%clk 0:02:53]}  h6 {[%clk 0:02:56]} 5. h4 {[%clk 0:02:52]}  hxg5 {[%clk 0:02:54]} 6. hxg5 {[%clk 0:02:53]}  Rxh1 {[%clk 0:02:54]} 7. Bxh1 {[%clk 0:02:54]}  e5 {[%clk 0:02:51]} 8. g6 {[%clk 0:02:54]}  fxg6 {[%clk 0:02:49]} 9. Qc2 {[%clk 0:02:53]}  Bf5 {[%clk 0:02:18]} 10. Qxc4 {[%clk 0:02:52]}  Nd7 {[%clk 0:01:56]} 11. Qxg8 {[%clk 0:02:45]}  Qh4 {[%clk 0:01:49]} 12. Bg2 {[%clk 0:02:36]}  Nc5 {[%clk 0:01:28]} 13. Nf3 {[%clk 0:02:10]}  Qg4 {[%clk 0:01:22]} 14. Kf1 {[%clk 0:02:08]}  O-O-O {[%clk 0:01:12]} 15. Na3 {[%clk 0:02:02]}  e4 {[%clk 0:00:55]} 16. Nd4 {[%clk 0:01:40]}  Bd7 {[%clk 0:00:24]} 17. Nc4 {[%clk 0:01:24]}  Qg5 {[%clk 0:00:19]} 18. d3 {[%clk 0:01:06]}  Qf6 {[%clk 0:00:19]} 19. Be3 {[%clk 0:01:00]}  exd3 {[%clk 0:00:20]} 20. exd3 {[%clk 0:00:58]}  Be7 {[%clk 0:00:19]} 21. Qh7 {[%clk 0:00:55]}  Nxd3 {[%clk 0:00:19]} 22. Rd1 {[%clk 0:00:39]}  Nf4 {[%clk 0:00:18]} 23. Qh2 {[%clk 0:00:32]}  Nxg2 {[%clk 0:00:17]} 24. Kxg2 {[%clk 0:00:22]}  Bg4 {[%clk 0:00:17]} 25. Rd2 {[%clk 0:00:17]}  Bb4 {[%clk 0:00:16]} 26. Rd3 {[%clk 0:00:16]}  Bf5 {[%clk 0:00:15]} 27. Nxf5 {[%clk 0:00:12]}  Rxd3 {[%clk 0:00:14]} 28. Qh8+ {[%clk 0:00:10]}  Kd7 {[%clk 0:00:14]} 29. Ng3 {[%clk 0:00:07]}  Rd5 {[%clk 0:00:11]} 30. a3 {[%clk 0:00:05]}  Bd6 {[%clk 0:00:10]} 31. Qa8 {[%clk 0:00:03]}  Bxg3 {[%clk 0:00:09]} 32. fxg3 {[%clk 0:00:03]}  Rb5 {[%clk 0:00:09]} 33. Qb8 {[%clk 0:00:02]}  Qe6 {[%clk 0:00:09]} 0-1


[Site "https://www.chess.com"]

[Event "Titled Tuesday Blitz November 15 Early 2022"]
[White "Arbunic Castro, Giovanna"]
[Black "Mohammed, Zozek Salah Mohammed"]
[WhiteFideId "3400549"]
[BlackFideId "4803361"]
[WhiteElo "1886"]
[BlackElo "2199"]
[Result "0-1"]
[Round "06"]
[TimeControl "180+1"]
[Date "2022.11.16"]
[WhiteClock "0:01:01"]
[BlackClock "0:01:46"]

1. e4 {[%clk 0:02:57]}  c5 {[%clk 0:02:58]} 2. g3 {[%clk 0:02:56]}  d6 {[%clk 0:02:56]} 3. Bg2 {[%clk 0:02:55]}  Nf6 {[%clk 0:02:57]} 4. Ne2 {[%clk 0:02:55]}  g6 {[%clk 0:02:57]} 5. O-O {[%clk 0:02:54]}  Bg7 {[%clk 0:02:57]} 6. c3 {[%clk 0:02:54]}  O-O {[%clk 0:02:57]} 7. d4 {[%clk 0:02:53]}  cxd4 {[%clk 0:02:57]} 8. cxd4 {[%clk 0:02:52]}  Nc6 {[%clk 0:02:57]} 9. Nbc3 {[%clk 0:02:51]}  a6 {[%clk 0:02:56]} 10. h3 {[%clk 0:02:50]}  e5 {[%clk 0:02:53]} 11. Be3 {[%clk 0:02:47]}  b5 {[%clk 0:02:44]} 12. f4 {[%clk 0:02:44]}  b4 {[%clk 0:02:40]} 13. Nd5 {[%clk 0:02:38]}  Nxd5 {[%clk 0:02:25]} 14. exd5 {[%clk 0:02:36]}  Nxd4 {[%clk 0:02:23]} 15. Nxd4 {[%clk 0:02:34]}  exd4 {[%clk 0:02:22]} 16. Bxd4 {[%clk 0:02:34]}  a5 {[%clk 0:02:19]} 17. Bxg7 {[%clk 0:02:23]}  Kxg7 {[%clk 0:02:20]} 18. Qd4+ {[%clk 0:02:23]}  Qf6 {[%clk 0:02:20]} 19. Qxf6+ {[%clk 0:02:20]}  Kxf6 {[%clk 0:02:19]} 20. Rac1 {[%clk 0:02:19]}  Ba6 {[%clk 0:02:17]} 21. Rfe1 {[%clk 0:02:13]}  Bb5 {[%clk 0:02:12]} 22. Bf1 {[%clk 0:02:04]}  Bxf1 {[%clk 0:02:10]} 23. Kxf1 {[%clk 0:02:03]}  Rac8 {[%clk 0:02:11]} 24. Rc6 {[%clk 0:02:02]}  Rxc6 {[%clk 0:02:08]} 25. dxc6 {[%clk 0:02:00]}  Rc8 {[%clk 0:02:09]} 26. Rc1 {[%clk 0:01:52]}  Ke6 {[%clk 0:02:08]} 27. Ke2 {[%clk 0:01:50]}  Rc7 {[%clk 0:02:08]} 28. Kd3 {[%clk 0:01:48]}  Kd5 {[%clk 0:02:08]} 29. f5 {[%clk 0:01:43]}  Rxc6 {[%clk 0:02:05]} 30. Rxc6 {[%clk 0:01:39]}  Kxc6 {[%clk 0:02:05]} 31. fxg6 {[%clk 0:01:34]}  fxg6 {[%clk 0:02:04]} 32. Kd4 {[%clk 0:01:23]}  d5 {[%clk 0:01:59]} 33. g4 {[%clk 0:01:20]}  g5 {[%clk 0:01:58]} 34. Ke5 {[%clk 0:01:18]}  Kc5 {[%clk 0:01:57]} 35. Kf5 {[%clk 0:01:17]}  d4 {[%clk 0:01:57]} 36. Kxg5 {[%clk 0:01:16]}  d3 {[%clk 0:01:56]} 37. Kh6 {[%clk 0:01:12]}  d2 {[%clk 0:01:57]} 38. h4 {[%clk 0:01:09]}  d1=Q {[%clk 0:01:56]} 39. g5 {[%clk 0:01:09]}  Qc2 {[%clk 0:01:52]} 40. h5 {[%clk 0:01:08]}  Qf5 {[%clk 0:01:44]} 41. g6 {[%clk 0:01:05]}  hxg6 {[%clk 0:01:45]} 42. hxg6 {[%clk 0:01:05]}  Qh3+ {[%clk 0:01:45]} 43. Kg7 {[%clk 0:01:03]}  Qg2 {[%clk 0:01:45]} 44. Kf7 {[%clk 0:01:01]}  Qxb2 {[%clk 0:01:46]} 45. g7 {[%clk 0:01:01]}  Qxa2+ {[%clk 0:01:46]} 0-1


[Site "https://www.chess.com"]

[Event "Titled Tuesday Blitz November 15 Early 2022"]
[White "Atakhan, Abtin"]
[Black "Omariev, Maksim"]
[WhiteFideId "22502203"]
[BlackFideId "4193423"]
[WhiteElo "2298"]
[BlackElo "2524"]
[Result "1-0"]
[Round "06"]
[TimeControl "180+1"]
[Date "2022.11.16"]
[WhiteClock "0:01:08"]
[BlackClock "0:00:01"]

1. c4 {[%clk 0:03:00]}  e5 {[%clk 0:02:54]} 2. g3 {[%clk 0:03:00]}  Nf6 {[%clk 0:02:53]} 3. Bg2 {[%clk 0:03:00]}  d5 {[%clk 0:02:53]} 4. cxd5 {[%clk 0:03:01]}  Nxd5 {[%clk 0:02:54]} 5. Nc3 {[%clk 0:03:02]}  Nb6 {[%clk 0:02:51]} 6. d3 {[%clk 0:03:02]}  Nc6 {[%clk 0:02:51]} 7. Be3 {[%clk 0:03:01]}  Be7 {[%clk 0:02:51]} 8. Rc1 {[%clk 0:03:01]}  h5 {[%clk 0:02:49]} 9. Bxc6+ {[%clk 0:02:52]}  bxc6 {[%clk 0:02:49]} 10. Nf3 {[%clk 0:02:52]}  Qd6 {[%clk 0:01:46]} 11. Ne4 {[%clk 0:02:50]}  Qe6 {[%clk 0:01:45]} 12. Bc5 {[%clk 0:02:37]}  h4 {[%clk 0:01:07]} 13. Bxe7 {[%clk 0:02:36]}  Qxe7 {[%clk 0:01:07]} 14. gxh4 {[%clk 0:02:32]}  Bg4 {[%clk 0:01:04]} 15. Ned2 {[%clk 0:02:16]}  Nd5 {[%clk 0:00:48]} 16. Rxc6 {[%clk 0:02:11]}  Nf4 {[%clk 0:00:43]} 17. Qa4 {[%clk 0:02:08]}  Bd7 {[%clk 0:00:31]} 18. Qc4 {[%clk 0:01:52]}  O-O {[%clk 0:00:23]} 19. Rxc7 {[%clk 0:01:51]}  Rfc8 {[%clk 0:00:21]} 20. Nb3 {[%clk 0:01:25]}  Rxc7 {[%clk 0:00:21]} 21. Qxc7 {[%clk 0:01:26]}  Rc8 {[%clk 0:00:21]} 22. Qxe5 {[%clk 0:01:26]}  Qb4+ {[%clk 0:00:12]} 23. Kd1 {[%clk 0:01:18]}  Be6 {[%clk 0:00:05]} 24. Nfd4 {[%clk 0:01:13]}  Nd5 {[%clk 0:00:02]} 25. Rg1 {[%clk 0:01:09]}  Nc7 {[%clk 0:00:01]} 26. Qxg7# {[%clk 0:01:08]} 1-0


[Site "https://www.chess.com"]

[Event "Titled Tuesday Blitz November 15 Early 2022"]
[White "Aumann, Welf"]
[Black "Orlov, Georgi"]
[WhiteFideId "4634071"]
[BlackFideId "2011271"]
[WhiteElo "2274"]
[BlackElo "2540"]
[Result "0-1"]
[Round "06"]
[TimeControl "180+1"]
[Date "2022.11.16"]
[WhiteClock "0:00:17"]
[BlackClock "0:01:05"]

1. c4 {[%clk 0:03:00]}  Nf6 {[%clk 0:02:59]} 2. g3 {[%clk 0:03:00]}  e5 {[%clk 0:02:58]} 3. Bg2 {[%clk 0:03:00]}  d5 {[%clk 0:02:58]} 4. cxd5 {[%clk 0:03:00]}  Nxd5 {[%clk 0:02:59]} 5. Nc3 {[%clk 0:03:00]}  Nb6 {[%clk 0:02:59]} 6. d3 {[%clk 0:02:58]}  Be7 {[%clk 0:02:59]} 7. Nf3 {[%clk 0:02:57]}  Nc6 {[%clk 0:02:58]} 8. O-O {[%clk 0:02:56]}  O-O {[%clk 0:02:58]} 9. Be3 {[%clk 0:02:56]}  Be6 {[%clk 0:02:54]} 10. Rc1 {[%clk 0:02:56]}  f5 {[%clk 0:02:50]} 11. a3 {[%clk 0:02:31]}  Kh8 {[%clk 0:02:34]} 12. Na4 {[%clk 0:02:25]}  Nd5 {[%clk 0:02:20]} 13. Rxc6 {[%clk 0:02:18]}  bxc6 {[%clk 0:02:18]} 14. Nxe5 {[%clk 0:02:17]}  Nxe3 {[%clk 0:01:56]} 15. fxe3 {[%clk 0:02:17]}  Bg5 {[%clk 0:01:55]} 16. Qc1 {[%clk 0:01:44]}  Qd6 {[%clk 0:01:54]} 17. Nxc6 {[%clk 0:00:58]}  Rae8 {[%clk 0:01:52]} 18. Kh1 {[%clk 0:00:47]}  Bd7 {[%clk 0:01:49]} 19. Qc4 {[%clk 0:00:34]}  Bxe3 {[%clk 0:01:45]} 20. Nc3 {[%clk 0:00:32]}  f4 {[%clk 0:01:37]} 21. gxf4 {[%clk 0:00:27]}  Rxf4 {[%clk 0:01:30]} 22. Rxf4 {[%clk 0:00:23]}  Bxf4 {[%clk 0:01:29]} 23. Nd4 {[%clk 0:00:20]}  c5 {[%clk 0:01:14]} 24. Nf3 {[%clk 0:00:20]}  Bc6 {[%clk 0:01:09]} 25. Ne4 {[%clk 0:00:16]}  Bxe4 {[%clk 0:01:05]} 26. dxe4 {[%clk 0:00:17]}  Qd1+ {[%clk 0:01:05]} 27. Ng1 {[%clk 0:00:17]}  Be3 {[%clk 0:01:05]} 0-1


[Site "https://www.chess.com"]

[Event "Titled Tuesday Blitz November 15 Early 2022"]
[White "Averjanov, Alexey"]
[Black "Bacrot, Etienne"]
[WhiteFideId "14109867"]
[BlackFideId "605506"]
[WhiteElo "2630"]
[BlackElo "2666"]
[Result "0-1"]
[Round "06"]
[TimeControl "180+1"]
[Date "2022.11.16"]
[WhiteClock "0:01:28"]
[BlackClock "0:00:46"]

1. d4 {[%clk 0:03:00]}  Nf6 {[%clk 0:02:59]} 2. c4 {[%clk 0:03:00]}  c6 {[%clk 0:03:00]} 3. e3 {[%clk 0:03:00]}  d5 {[%clk 0:03:00]} 4. Bd3 {[%clk 0:03:00]}  Bg4 {[%clk 0:02:59]} 5. Qc2 {[%clk 0:02:59]}  e6 {[%clk 0:03:00]} 6. Nd2 {[%clk 0:02:59]}  Bd6 {[%clk 0:02:55]} 7. Ngf3 {[%clk 0:02:59]}  Nbd7 {[%clk 0:02:53]} 8. b3 {[%clk 0:02:59]}  O-O {[%clk 0:02:51]} 9. Bb2 {[%clk 0:02:59]}  Bh5 {[%clk 0:02:47]} 10. Ne5 {[%clk 0:02:59]}  Bg6 {[%clk 0:02:44]} 11. Nxg6 {[%clk 0:02:59]}  hxg6 {[%clk 0:02:45]} 12. O-O {[%clk 0:02:59]}  e5 {[%clk 0:02:45]} 13. dxe5 {[%clk 0:02:57]}  Bxe5 {[%clk 0:02:46]} 14. Nf3 {[%clk 0:02:53]}  Bxb2 {[%clk 0:02:45]} 15. Qxb2 {[%clk 0:02:53]}  Qe7 {[%clk 0:02:44]} 16. Rad1 {[%clk 0:02:49]}  Rfd8 {[%clk 0:02:43]} 17. cxd5 {[%clk 0:02:49]}  Nxd5 {[%clk 0:02:43]} 18. a3 {[%clk 0:02:46]}  Nc5 {[%clk 0:02:43]} 19. Bc4 {[%clk 0:02:45]}  Nb6 {[%clk 0:02:27]} 20. Be2 {[%clk 0:02:41]}  Ne4 {[%clk 0:02:20]} 21. h3 {[%clk 0:02:39]}  Nd5 {[%clk 0:02:18]} 22. Bc4 {[%clk 0:02:37]}  Ndc3 {[%clk 0:02:14]} 23. Rxd8+ {[%clk 0:02:36]}  Rxd8 {[%clk 0:02:15]} 24. Rc1 {[%clk 0:02:34]}  b5 {[%clk 0:02:08]} 25. Be2 {[%clk 0:02:27]}  Rd2 {[%clk 0:01:45]} 26. Nxd2 {[%clk 0:02:19]}  Nxe2+ {[%clk 0:01:45]} 27. Kf1 {[%clk 0:02:17]}  Nxc1 {[%clk 0:01:43]} 28. Nxe4 {[%clk 0:02:00]}  Qxe4 {[%clk 0:01:29]} 29. Qxc1 {[%clk 0:02:00]}  Qd3+ {[%clk 0:01:25]} 30. Kg1 {[%clk 0:02:00]}  Qxb3 {[%clk 0:01:07]} 31. Qxc6 {[%clk 0:01:59]}  Kh7 {[%clk 0:01:07]} 32. Qc5 {[%clk 0:01:49]}  a5 {[%clk 0:01:03]} 33. Qe7 {[%clk 0:01:49]}  f6 {[%clk 0:00:59]} 34. e4 {[%clk 0:01:38]}  b4 {[%clk 0:00:54]} 35. axb4 {[%clk 0:01:38]}  Qxb4 {[%clk 0:00:50]} 36. Qe6 {[%clk 0:01:30]}  a4 {[%clk 0:00:46]} 37. e5 {[%clk 0:01:30]}  Qe1+ {[%clk 0:00:46]} 38. Kh2 {[%clk 0:01:28]}  Qxe5+ {[%clk 0:00:46]} 0-1


[Site "https://www.chess.com"]

[Event "Titled Tuesday Blitz November 15 Early 2022"]
[White "Barbashin, Igor"]
[Black "Forgacs, Attila Jr."]
[WhiteFideId "4155718"]
[BlackFideId "773654"]
[WhiteElo "2138"]
[BlackElo "2168"]
[Result "0-1"]
[Round "06"]
[TimeControl "180+1"]
[Date "2022.11.16"]
[WhiteClock "0:00:06"]
[BlackClock "0:01:31"]

1. d4 {[%clk 0:03:00]}  Nf6 {[%clk 0:03:00]} 2. c4 {[%clk 0:03:00]}  g6 {[%clk 0:02:59]} 3. Nc3 {[%clk 0:02:59]}  d5 {[%clk 0:02:59]} 4. Nf3 {[%clk 0:02:58]}  Bg7 {[%clk 0:02:59]} 5. e3 {[%clk 0:02:58]}  O-O {[%clk 0:02:59]} 6. Be2 {[%clk 0:02:57]}  b6 {[%clk 0:02:59]} 7. O-O {[%clk 0:02:55]}  c5 {[%clk 0:03:00]} 8. dxc5 {[%clk 0:02:50]}  bxc5 {[%clk 0:03:00]} 9. cxd5 {[%clk 0:02:46]}  Bb7 {[%clk 0:02:59]} 10. e4 {[%clk 0:02:46]}  Qc7 {[%clk 0:02:44]} 11. e5 {[%clk 0:02:34]}  Nfd7 {[%clk 0:02:43]} 12. d6 {[%clk 0:02:27]}  exd6 {[%clk 0:02:42]} 13. exd6 {[%clk 0:02:26]}  Qb6 {[%clk 0:02:38]} 14. Na4 {[%clk 0:01:49]}  Qc6 {[%clk 0:02:30]} 15. Bc4 {[%clk 0:01:35]}  Ne5 {[%clk 0:02:26]} 16. Be2 {[%clk 0:01:18]}  Rd8 {[%clk 0:02:26]} 17. Qb3 {[%clk 0:01:03]}  Rxd6 {[%clk 0:02:19]} 18. Bf4 {[%clk 0:01:02]}  Re6 {[%clk 0:02:14]} 19. Rfc1 {[%clk 0:00:55]}  Na6 {[%clk 0:02:10]} 20. Bxa6 {[%clk 0:00:42]}  Nxf3+ {[%clk 0:02:07]} 21. Qxf3 {[%clk 0:00:29]}  Qxa6 {[%clk 0:02:01]} 22. Nxc5 {[%clk 0:00:22]}  Bxf3 {[%clk 0:01:51]} 23. Nxa6 {[%clk 0:00:22]}  Rxa6 {[%clk 0:01:50]} 24. gxf3 {[%clk 0:00:21]}  Bxb2 {[%clk 0:01:51]} 25. Rab1 {[%clk 0:00:15]}  Bxc1 {[%clk 0:01:51]} 26. Rxc1 {[%clk 0:00:15]}  Rxa2 {[%clk 0:01:51]} 27. Rc7 {[%clk 0:00:15]}  a5 {[%clk 0:01:48]} 28. Be5 {[%clk 0:00:14]}  a4 {[%clk 0:01:47]} 29. f4 {[%clk 0:00:15]}  a3 {[%clk 0:01:46]} 30. h4 {[%clk 0:00:14]}  h5 {[%clk 0:01:45]} 31. f5 {[%clk 0:00:13]}  gxf5 {[%clk 0:01:45]} 32. Kg2 {[%clk 0:00:13]}  Re2 {[%clk 0:01:44]} 33. Bf6 {[%clk 0:00:12]}  a2 {[%clk 0:01:43]} 34. Rc3 {[%clk 0:00:09]}  f4 {[%clk 0:01:37]} 35. Rc5 {[%clk 0:00:08]}  a1=Q {[%clk 0:01:33]} 36. Bxa1 {[%clk 0:00:06]}  Rxa1 {[%clk 0:01:31]} 0-1


[Site "https://www.chess.com"]